[Event "Titled Tuesday Blitz August 08 Early 2023"]
[White "Pranav Anand"]
[Black "Firouzja, Alireza"]
[WhiteFideId "46626786"]
[BlackFideId "12573981"]
[WhiteElo "2867"]
[BlackElo "3091"]
[Result "0-1"]
[Round "5"]
[TimeControl "180+1"]
[Date "2023.08.08"]
[WhiteClock "0:00:02"]
[BlackClock "0:00:14"]
[Board "11"]

1. Nf3 {[%clk 0:02:56]}  Nf6 {[%clk 0:02:58]} 2. c4 {[%clk 0:02:56]}  g6 {[%clk 0:02:58]} 3. g3 {[%clk 0:02:54]}  Bg7 {[%clk 0:02:59]} 4. Bg2 {[%clk 0:02:55]}  O-O {[%clk 0:02:59]} 5. O-O {[%clk 0:02:56]}  d6 {[%clk 0:02:59]} 6. Nc3 {[%clk 0:02:56]}  e5 {[%clk 0:02:57]} 7. d3 {[%clk 0:02:57]}  Nc6 {[%clk 0:02:55]} 8. Bg5 {[%clk 0:02:56]}  h6 {[%clk 0:02:55]} 9. Bxf6 {[%clk 0:02:56]}  Bxf6 {[%clk 0:02:56]} 10. Rb1 {[%clk 0:02:57]}  a5 {[%clk 0:02:55]} 11. a3 {[%clk 0:02:57]}  Bg7 {[%clk 0:02:46]} 12. Nd2 {[%clk 0:02:42]}  Nd4 {[%clk 0:02:45]} 13. e3 {[%clk 0:02:40]}  Ne6 {[%clk 0:02:45]} 14. b4 {[%clk 0:02:35]}  axb4 {[%clk 0:02:45]} 15. axb4 {[%clk 0:02:36]}  c6 {[%clk 0:02:40]} 16. Qc2 {[%clk 0:02:32]}  f5 {[%clk 0:02:36]} 17. b5 {[%clk 0:02:32]}  Bd7 {[%clk 0:02:36]} 18. bxc6 {[%clk 0:02:30]}  bxc6 {[%clk 0:02:37]} 19. Rb7 {[%clk 0:02:29]}  Nc5 {[%clk 0:02:35]} 20. Rb4 {[%clk 0:02:11]}  Ra3 {[%clk 0:02:24]} 21. Ndb1 {[%clk 0:02:01]}  Ra1 {[%clk 0:02:21]} 22. Rd1 {[%clk 0:01:49]}  Qa5 {[%clk 0:01:59]} 23. Qb2 {[%clk 0:01:45]}  e4 {[%clk 0:01:47]} 24. d4 {[%clk 0:00:25]}  Nd3 {[%clk 0:01:44]} 25. Rxd3 {[%clk 0:00:26]}  exd3 {[%clk 0:01:44]} 26. Bf1 {[%clk 0:00:23]}  c5 {[%clk 0:01:35]} 27. Rb7 {[%clk 0:00:21]}  Rf7 {[%clk 0:01:25]} 28. Bxd3 {[%clk 0:00:18]}  cxd4 {[%clk 0:01:25]} 29. exd4 {[%clk 0:00:16]}  Bxd4 {[%clk 0:01:24]} 30. c5 {[%clk 0:00:13]}  Bxc3 {[%clk 0:01:09]} 31. Qb3 {[%clk 0:00:09]}  Kg7 {[%clk 0:00:31]} 32. c6 {[%clk 0:00:08]}  Be8 {[%clk 0:00:30]} 33. Bc4 {[%clk 0:00:08]}  Bd4 {[%clk 0:00:19]} 34. Qd1 {[%clk 0:00:05]}  Bxf2+ {[%clk 0:00:14]} 35. Kxf2 {[%clk 0:00:03]}  Qc5+ {[%clk 0:00:14]} 36. Ke2 {[%clk 0:00:02]}  Qxc4+ {[%clk 0:00:14]} 0-1


[Site "https://www.chess.com"]

[Event "Titled Tuesday Blitz August 08 Early 2023"]
[White "Molina, Roberto Junio Brito"]
[Black "Matlakov, Maxim"]
[WhiteFideId "2109450"]
[BlackFideId "4168003"]
[WhiteElo "2860"]
[BlackElo "2988"]
[Result "0-1"]
[Round "5"]
[TimeControl "180+1"]
[Date "2023.08.08"]
[WhiteClock "0:00:04"]
[BlackClock "0:00:14"]
[Board "13"]

1. d4 {[%clk 0:03:00]}  Nf6 {[%clk 0:02:59]} 2. c4 {[%clk 0:03:01]}  e6 {[%clk 0:03:00]} 3. Nf3 {[%clk 0:03:00]}  Bb4+ {[%clk 0:02:59]} 4. Bd2 {[%clk 0:03:00]}  Bxd2+ {[%clk 0:02:56]} 5. Qxd2 {[%clk 0:03:01]}  d5 {[%clk 0:02:56]} 6. e3 {[%clk 0:02:59]}  O-O {[%clk 0:02:56]} 7. Nc3 {[%clk 0:02:59]}  Qe7 {[%clk 0:02:56]} 8. Rc1 {[%clk 0:02:57]}  Rd8 {[%clk 0:02:53]} 9. cxd5 {[%clk 0:02:51]}  exd5 {[%clk 0:02:53]} 10. Be2 {[%clk 0:02:51]}  c6 {[%clk 0:02:50]} 11. O-O {[%clk 0:02:51]}  Nbd7 {[%clk 0:02:50]} 12. a3 {[%clk 0:02:49]}  Ne4 {[%clk 0:02:50]} 13. Qc2 {[%clk 0:02:46]}  Ndf6 {[%clk 0:02:49]} 14. Nd2 {[%clk 0:02:45]}  Nd6 {[%clk 0:02:44]} 15. Bd3 {[%clk 0:02:43]}  h5 {[%clk 0:02:39]} 16. Rce1 {[%clk 0:02:40]}  Nfe4 {[%clk 0:02:29]} 17. f3 {[%clk 0:02:38]}  Nxd2 {[%clk 0:02:24]} 18. Qxd2 {[%clk 0:02:37]}  Qg5 {[%clk 0:02:24]} 19. Rf2 {[%clk 0:02:15]}  Bf5 {[%clk 0:02:13]} 20. e4 {[%clk 0:02:10]}  Qxd2 {[%clk 0:02:12]} 21. Rxd2 {[%clk 0:02:11]}  dxe4 {[%clk 0:02:06]} 22. fxe4 {[%clk 0:02:10]}  Bg6 {[%clk 0:02:06]} 23. Kf2 {[%clk 0:02:04]}  b5 {[%clk 0:01:57]} 24. Bf1 {[%clk 0:01:50]}  a5 {[%clk 0:01:54]} 25. Kf3 {[%clk 0:01:39]}  b4 {[%clk 0:01:53]} 26. Nd1 {[%clk 0:01:37]}  f5 {[%clk 0:01:44]} 27. e5 {[%clk 0:01:29]}  Ne4 {[%clk 0:01:44]} 28. Bc4+ {[%clk 0:01:27]}  Kh7 {[%clk 0:01:39]} 29. Rd3 {[%clk 0:01:27]}  h4 {[%clk 0:01:15]} 30. Kf4 {[%clk 0:01:24]}  Kh6 {[%clk 0:00:58]} 31. Ne3 {[%clk 0:01:19]}  Rf8 {[%clk 0:00:49]} 32. Be6 {[%clk 0:01:08]}  Ng5 {[%clk 0:00:37]} 33. Bxf5 {[%clk 0:01:04]}  Ne6+ {[%clk 0:00:33]} 34. Ke4 {[%clk 0:01:00]}  Ng5+ {[%clk 0:00:30]} 35. Kf4 {[%clk 0:01:00]}  Ne6+ {[%clk 0:00:30]} 36. Kg4 {[%clk 0:00:34]}  Bh5+ {[%clk 0:00:30]} 37. Kxh4 {[%clk 0:00:34]}  Nf4 {[%clk 0:00:31]} 38. Rd2 {[%clk 0:00:32]}  Nd5 {[%clk 0:00:26]} 39. g4 {[%clk 0:00:28]}  Bf7 {[%clk 0:00:22]} 40. Nxd5 {[%clk 0:00:26]}  Bxd5 {[%clk 0:00:23]} 41. Kg3 {[%clk 0:00:24]}  Rab8 {[%clk 0:00:21]} 42. axb4 {[%clk 0:00:23]}  Rxb4 {[%clk 0:00:21]} 43. h4 {[%clk 0:00:23]}  g6 {[%clk 0:00:21]} 44. g5+ {[%clk 0:00:20]}  Kg7 {[%clk 0:00:21]} 45. Be4 {[%clk 0:00:21]}  Rb3+ {[%clk 0:00:21]} 46. Kh2 {[%clk 0:00:16]}  Rf4 {[%clk 0:00:20]} 47. Bxd5 {[%clk 0:00:15]}  Rxh4+ {[%clk 0:00:19]} 48. Kg2 {[%clk 0:00:14]}  cxd5 {[%clk 0:00:20]} 49. e6 {[%clk 0:00:15]}  Rg4+ {[%clk 0:00:20]} 50. Kh2 {[%clk 0:00:15]}  Kf8 {[%clk 0:00:19]} 51. Rf2+ {[%clk 0:00:14]}  Ke7 {[%clk 0:00:19]} 52. Rf7+ {[%clk 0:00:14]}  Ke8 {[%clk 0:00:19]} 53. Rh7 {[%clk 0:00:11]}  Rxd4 {[%clk 0:00:16]} 54. e7 {[%clk 0:00:08]}  Re4 {[%clk 0:00:17]} 55. Rc1 {[%clk 0:00:03]}  Rxb2+ {[%clk 0:00:16]} 56. Kg3 {[%clk 0:00:03]}  Rxe7 {[%clk 0:00:17]} 57. Rc8+ {[%clk 0:00:02]}  Kd7 {[%clk 0:00:18]} 58. Rxe7+ {[%clk 0:00:02]}  Kxe7 {[%clk 0:00:18]} 59. Rc5 {[%clk 0:00:03]}  Kd6 {[%clk 0:00:18]} 60. Rxa5 {[%clk 0:00:03]}  Ke5 {[%clk 0:00:19]} 61. Ra6 {[%clk 0:00:03]}  Kf5 {[%clk 0:00:19]} 62. Rd6 {[%clk 0:00:03]}  Rd2 {[%clk 0:00:19]} 63. Kf3 {[%clk 0:00:03]}  Kxg5 {[%clk 0:00:12]} 64. Ke3 {[%clk 0:00:03]}  Rd1 {[%clk 0:00:13]} 65. Ke2 {[%clk 0:00:04]}  Rd4 {[%clk 0:00:13]} 66. Ke3 {[%clk 0:00:04]}  Re4+ {[%clk 0:00:13]} 67. Kf3 {[%clk 0:00:04]}  Re5 {[%clk 0:00:13]} 68. Rd8 {[%clk 0:00:05]}  Kf6 {[%clk 0:00:13]} 69. Rf8+ {[%clk 0:00:05]}  Ke6 {[%clk 0:00:13]} 70. Re8+ {[%clk 0:00:05]}  Kd6 {[%clk 0:00:13]} 71. Rg8 {[%clk 0:00:05]}  g5 {[%clk 0:00:13]} 72. Rd8+ {[%clk 0:00:05]}  Kc5 {[%clk 0:00:14]} 73. Rc8+ {[%clk 0:00:06]}  Kd4 {[%clk 0:00:14]} 74. Ra8 {[%clk 0:00:06]}  Rf5+ {[%clk 0:00:13]} 75. Kg4 {[%clk 0:00:04]}  Rf1 {[%clk 0:00:13]} 76. Kxg5 {[%clk 0:00:04]}  Ke4 {[%clk 0:00:12]} 77. Re8+ {[%clk 0:00:04]}  Kd3 {[%clk 0:00:13]} 78. Kg4 {[%clk 0:00:04]}  d4 {[%clk 0:00:13]} 79. Kg3 {[%clk 0:00:04]}  Kc3 {[%clk 0:00:14]} 80. Kg2 {[%clk 0:00:05]}  Rf7 {[%clk 0:00:14]} 81. Rc8+ {[%clk 0:00:05]}  Kd2 {[%clk 0:00:14]} 82. Rd8 {[%clk 0:00:04]}  d3 {[%clk 0:00:15]} 83. Rd7 {[%clk 0:00:04]}  Rxd7 {[%clk 0:00:14]} 0-1


[Site "https://www.chess.com"]

[Event "Titled Tuesday Blitz August 08 Early 2023"]
[White "Van Foreest, Jorden"]
[Black "Henriquez Villagra, Cristobal"]
[WhiteFideId "1039784"]
[BlackFideId "3409350"]
[WhiteElo "2985"]
[BlackElo "2848"]
[Result "1-0"]
[Round "5"]
[TimeControl "180+1"]
[Date "2023.08.08"]
[WhiteClock "0:00:20"]
[BlackClock "0:00:01"]
[Board "14"]

1. d4 {[%clk 0:02:59]}  d6 {[%clk 0:03:00]} 2. Nf3 {[%clk 0:03:00]}  g6 {[%clk 0:02:58]} 3. e4 {[%clk 0:03:00]}  Bg7 {[%clk 0:02:58]} 4. Nc3 {[%clk 0:02:57]}  a6 {[%clk 0:02:59]} 5. Be3 {[%clk 0:02:51]}  Nd7 {[%clk 0:02:55]} 6. Bd3 {[%clk 0:02:45]}  b5 {[%clk 0:02:55]} 7. a4 {[%clk 0:02:44]}  b4 {[%clk 0:02:51]} 8. Ne2 {[%clk 0:02:41]}  a5 {[%clk 0:02:44]} 9. c3 {[%clk 0:02:41]}  Ngf6 {[%clk 0:02:39]} 10. Ng3 {[%clk 0:02:35]}  O-O {[%clk 0:02:38]} 11. Qd2 {[%clk 0:02:33]}  bxc3 {[%clk 0:02:14]} 12. bxc3 {[%clk 0:02:32]}  Ng4 {[%clk 0:02:09]} 13. O-O {[%clk 0:02:25]}  Nxe3 {[%clk 0:02:08]} 14. fxe3 {[%clk 0:02:24]}  e6 {[%clk 0:02:01]} 15. Rab1 {[%clk 0:02:21]}  Nb6 {[%clk 0:01:59]} 16. Bb5 {[%clk 0:02:20]}  Bd7 {[%clk 0:01:50]} 17. Ra1 {[%clk 0:02:06]}  Bh6 {[%clk 0:01:44]} 18. Qe2 {[%clk 0:01:58]}  c6 {[%clk 0:01:35]} 19. Bd3 {[%clk 0:01:58]}  Rb8 {[%clk 0:01:36]} 20. e5 {[%clk 0:01:57]}  d5 {[%clk 0:01:33]} 21. h3 {[%clk 0:01:56]}  c5 {[%clk 0:01:26]} 22. Bb5 {[%clk 0:01:55]}  Bxb5 {[%clk 0:01:21]} 23. axb5 {[%clk 0:01:55]}  Nc4 {[%clk 0:01:22]} 24. e4 {[%clk 0:01:48]}  Rxb5 {[%clk 0:01:22]} 25. Ra2 {[%clk 0:01:36]}  cxd4 {[%clk 0:01:15]} 26. cxd4 {[%clk 0:01:36]}  Rb6 {[%clk 0:01:04]} 27. Kh1 {[%clk 0:01:24]}  Qe7 {[%clk 0:00:43]} 28. Nh2 {[%clk 0:01:12]}  Rfb8 {[%clk 0:00:39]} 29. Ng4 {[%clk 0:01:00]}  Bg7 {[%clk 0:00:40]} 30. exd5 {[%clk 0:00:59]}  exd5 {[%clk 0:00:39]} 31. Qf3 {[%clk 0:00:58]}  Qe6 {[%clk 0:00:32]} 32. Qf4 {[%clk 0:00:58]}  Rb1 {[%clk 0:00:27]} 33. Rf2 {[%clk 0:00:59]}  Rxf1+ {[%clk 0:00:26]} 34. Rxf1 {[%clk 0:00:59]}  a4 {[%clk 0:00:26]} 35. Nf6+ {[%clk 0:00:57]}  Bxf6 {[%clk 0:00:24]} 36. exf6 {[%clk 0:00:58]}  Qd6 {[%clk 0:00:21]} 37. Qg5 {[%clk 0:00:57]}  Qf8 {[%clk 0:00:17]} 38. Nf5 {[%clk 0:00:56]}  Kh8 {[%clk 0:00:17]} 39. Ne7 {[%clk 0:00:50]}  a3 {[%clk 0:00:17]} 40. Qxd5 {[%clk 0:00:50]}  Ne3 {[%clk 0:00:18]} 41. Qf3 {[%clk 0:00:33]}  Nxf1 {[%clk 0:00:18]} 42. Qxa3 {[%clk 0:00:34]}  Nd2 {[%clk 0:00:14]} 43. Kh2 {[%clk 0:00:30]}  Ne4 {[%clk 0:00:14]} 44. Qf3 {[%clk 0:00:28]}  Nd6 {[%clk 0:00:12]} 45. Qf4 {[%clk 0:00:28]}  Rd8 {[%clk 0:00:12]} 46. Nc6 {[%clk 0:00:26]}  Re8 {[%clk 0:00:11]} 47. Ne5 {[%clk 0:00:25]}  Re6 {[%clk 0:00:09]} 48. Nd7 {[%clk 0:00:24]}  Qd8 {[%clk 0:00:08]} 49. d5 {[%clk 0:00:20]}  Qxd7 {[%clk 0:00:01]} 50. Qh6 {[%clk 0:00:20]} 1-0


[Site "https://www.chess.com"]

[Event "Titled Tuesday Blitz August 08 Early 2023"]
[White "Le, Tuan Minh"]
[Black "Ibarra Jerez, Jose Carlos"]
[WhiteFideId "12401153"]
[BlackFideId "2226332"]
[WhiteElo "2966"]
[BlackElo "2842"]
[Result "1-0"]
[Round "5"]
[TimeControl "180+1"]
[Date "2023.08.08"]
[WhiteClock "0:00:52"]
[BlackClock "0:00:05"]
[Board "15"]

1. e4 {[%clk 0:02:53]}  c5 {[%clk 0:02:59]} 2. Nf3 {[%clk 0:02:53]}  Nc6 {[%clk 0:02:59]} 3. Bb5 {[%clk 0:02:52]}  e6 {[%clk 0:02:59]} 4. O-O {[%clk 0:02:52]}  Nge7 {[%clk 0:02:59]} 5. Re1 {[%clk 0:02:51]}  Nd4 {[%clk 0:02:59]} 6. Bf1 {[%clk 0:02:50]}  Nec6 {[%clk 0:02:59]} 7. c3 {[%clk 0:02:50]}  Nxf3+ {[%clk 0:02:59]} 8. Qxf3 {[%clk 0:02:51]}  Be7 {[%clk 0:03:00]} 9. d3 {[%clk 0:02:50]}  O-O {[%clk 0:02:59]} 10. Bf4 {[%clk 0:02:51]}  e5 {[%clk 0:02:59]} 11. Be3 {[%clk 0:02:48]}  d6 {[%clk 0:02:59]} 12. Nd2 {[%clk 0:02:49]}  f5 {[%clk 0:02:59]} 13. exf5 {[%clk 0:02:49]}  Bxf5 {[%clk 0:02:59]} 14. Ne4 {[%clk 0:02:18]}  d5 {[%clk 0:02:44]} 15. Ng3 {[%clk 0:02:18]}  Bxd3 {[%clk 0:02:39]} 16. Qg4 {[%clk 0:02:18]}  Bxf1 {[%clk 0:02:26]} 17. Rxf1 {[%clk 0:02:19]}  Qc8 {[%clk 0:02:26]} 18. Qa4 {[%clk 0:02:12]}  Qe6 {[%clk 0:02:21]} 19. Rae1 {[%clk 0:02:09]}  b6 {[%clk 0:02:10]} 20. f4 {[%clk 0:02:09]}  e4 {[%clk 0:01:53]} 21. f5 {[%clk 0:02:09]}  Qd7 {[%clk 0:01:50]} 22. Rd1 {[%clk 0:02:01]}  Rac8 {[%clk 0:01:31]} 23. Qxe4 {[%clk 0:01:56]}  Rcd8 {[%clk 0:01:27]} 24. Qa4 {[%clk 0:01:44]}  Ne5 {[%clk 0:01:22]} 25. Qxd7 {[%clk 0:01:44]}  Rxd7 {[%clk 0:01:23]} 26. Bf4 {[%clk 0:01:45]}  Ng4 {[%clk 0:01:14]} 27. h3 {[%clk 0:01:43]}  Nf6 {[%clk 0:01:14]} 28. Rfe1 {[%clk 0:01:43]}  Rfd8 {[%clk 0:01:13]} 29. Kf2 {[%clk 0:01:37]}  Kf7 {[%clk 0:01:12]} 30. Kf3 {[%clk 0:01:37]}  Bd6 {[%clk 0:01:01]} 31. Ne2 {[%clk 0:01:36]}  g6 {[%clk 0:00:48]} 32. g4 {[%clk 0:01:31]}  gxf5 {[%clk 0:00:47]} 33. gxf5 {[%clk 0:01:32]}  Rg8 {[%clk 0:00:38]} 34. a4 {[%clk 0:01:17]}  Bxf4 {[%clk 0:00:37]} 35. Nxf4 {[%clk 0:01:18]}  Rg5 {[%clk 0:00:35]} 36. Re5 {[%clk 0:01:16]}  d4 {[%clk 0:00:25]} 37. cxd4 {[%clk 0:01:09]}  cxd4 {[%clk 0:00:26]} 38. a5 {[%clk 0:01:06]}  bxa5 {[%clk 0:00:24]} 39. Rxa5 {[%clk 0:01:04]}  Rb7 {[%clk 0:00:24]} 40. Rxd4 {[%clk 0:01:01]}  Nh5 {[%clk 0:00:21]} 41. Ne6 {[%clk 0:00:54]}  Rg3+ {[%clk 0:00:20]} 42. Ke4 {[%clk 0:00:54]}  Nf6+ {[%clk 0:00:18]} 43. Kf4 {[%clk 0:00:51]}  Nh5+ {[%clk 0:00:18]} 44. Ke5 {[%clk 0:00:52]}  Re3+ {[%clk 0:00:17]} 45. Kd6 {[%clk 0:00:52]}  h6 {[%clk 0:00:05]} 46. Nd8+ {[%clk 0:00:52]} 1-0


[Site "https://www.chess.com"]

[Event "Titled Tuesday Blitz August 08 Early 2023"]
[White "Lamaze, Simon"]
[Black "Isanzhulov, Arystan"]
[WhiteFideId "36069264"]
[BlackFideId "13711644"]
[WhiteElo "2765"]
[BlackElo "2870"]
[Result "0-1"]
[Round "5"]
[TimeControl "180+1"]
[Date "2023.08.08"]
[WhiteClock "0:00:00"]
[BlackClock "0:00:20"]
[Board "20"]

1. c4 {[%clk 0:03:00]}  g6 {[%clk 0:02:57]} 2. e4 {[%clk 0:02:57]}  Bg7 {[%clk 0:02:57]} 3. d4 {[%clk 0:02:57]}  c5 {[%clk 0:02:56]} 4. dxc5 {[%clk 0:02:56]}  Qa5+ {[%clk 0:02:49]} 5. Nc3 {[%clk 0:02:55]}  Qxc5 {[%clk 0:02:42]} 6. Be3 {[%clk 0:02:49]}  Qa5 {[%clk 0:02:39]} 7. Nf3 {[%clk 0:02:43]}  Nf6 {[%clk 0:02:38]} 8. Bd3 {[%clk 0:02:39]}  O-O {[%clk 0:02:37]} 9. O-O {[%clk 0:02:39]}  Nc6 {[%clk 0:02:36]} 10. h3 {[%clk 0:02:39]}  d6 {[%clk 0:02:35]} 11. Re1 {[%clk 0:02:39]}  Nd7 {[%clk 0:02:12]} 12. Bf1 {[%clk 0:02:36]}  Bxc3 {[%clk 0:02:10]} 13. bxc3 {[%clk 0:02:37]}  Qxc3 {[%clk 0:02:11]} 14. Nd4 {[%clk 0:02:26]}  Nc5 {[%clk 0:02:04]} 15. Rb1 {[%clk 0:02:21]}  Qa5 {[%clk 0:01:58]} 16. Nxc6 {[%clk 0:02:14]}  bxc6 {[%clk 0:01:57]} 17. e5 {[%clk 0:02:13]}  Bf5 {[%clk 0:01:54]} 18. Rb2 {[%clk 0:02:08]}  dxe5 {[%clk 0:01:53]} 19. Bd2 {[%clk 0:01:59]}  Qc7 {[%clk 0:01:49]} 20. Bc3 {[%clk 0:01:33]}  f6 {[%clk 0:01:46]} 21. Qc1 {[%clk 0:01:33]}  Na4 {[%clk 0:01:44]} 22. Rb3 {[%clk 0:01:23]}  Nxc3 {[%clk 0:01:43]} 23. Qxc3 {[%clk 0:01:24]}  Rab8 {[%clk 0:01:43]} 24. c5 {[%clk 0:01:24]}  Be6 {[%clk 0:01:39]} 25. Ra3 {[%clk 0:01:23]}  Kg7 {[%clk 0:01:37]} 26. f4 {[%clk 0:01:23]}  Rfd8 {[%clk 0:01:34]} 27. fxe5 {[%clk 0:01:22]}  f5 {[%clk 0:01:33]} 28. Bc4 {[%clk 0:01:15]}  Bxc4 {[%clk 0:01:31]} 29. Qxc4 {[%clk 0:01:16]}  Rd5 {[%clk 0:01:30]} 30. e6 {[%clk 0:01:13]}  Rbd8 {[%clk 0:01:28]} 31. Qc3+ {[%clk 0:01:04]}  Kg8 {[%clk 0:01:28]} 32. Rb3 {[%clk 0:00:59]}  Qf4 {[%clk 0:01:24]} 33. Qe3 {[%clk 0:00:43]}  Qc7 {[%clk 0:01:02]} 34. Reb1 {[%clk 0:00:40]}  a5 {[%clk 0:00:49]} 35. a4 {[%clk 0:00:34]}  Rd4 {[%clk 0:00:46]} 36. Re1 {[%clk 0:00:22]}  Kg7 {[%clk 0:00:42]} 37. Rb6 {[%clk 0:00:21]}  Rxa4 {[%clk 0:00:35]} 38. Qf3 {[%clk 0:00:17]}  Rd5 {[%clk 0:00:32]} 39. Qc3+ {[%clk 0:00:17]}  Rad4 {[%clk 0:00:32]} 40. Qxa5 {[%clk 0:00:17]}  Qg3 {[%clk 0:00:29]} 41. Qa1 {[%clk 0:00:16]}  Kh6 {[%clk 0:00:24]} 42. Qc1+ {[%clk 0:00:16]}  Rd2 {[%clk 0:00:25]} 43. Re2 {[%clk 0:00:10]}  f4 {[%clk 0:00:20]} 44. Rxd2 {[%clk 0:00:09]}  Qe3+ {[%clk 0:00:21]} 45. Kh1 {[%clk 0:00:03]}  Rxd2 {[%clk 0:00:21]} 46. Rb3 {[%clk 0:00:04]}  Qe2 {[%clk 0:00:20]} 47. Qg1 {[%clk 0:00:00]}  Rd1 {[%clk 0:00:20]} 0-1


[Site "https://www.chess.com"]

[Event "Titled Tuesday Blitz August 08 Early 2023"]
[White "Akhmedinov, Satbek"]
[Black "Bluebaum, Matthias"]
[WhiteFideId "13714287"]
[BlackFideId "24651516"]
[WhiteElo "2680"]
[BlackElo "3034"]
[Result "1/2-1/2"]
[Round "5"]
[TimeControl "180+1"]
[Date "2023.08.08"]
[WhiteClock "0:01:43"]
[BlackClock "0:00:48"]
[Board "22"]

1. e4 {[%clk 0:03:00]}  e6 {[%clk 0:03:00]} 2. d4 {[%clk 0:02:58]}  d5 {[%clk 0:03:01]} 3. Nd2 {[%clk 0:02:56]}  c5 {[%clk 0:03:00]} 4. exd5 {[%clk 0:02:56]}  Qxd5 {[%clk 0:03:01]} 5. Ngf3 {[%clk 0:02:57]}  cxd4 {[%clk 0:03:02]} 6. Bc4 {[%clk 0:02:57]}  Qd6 {[%clk 0:03:03]} 7. O-O {[%clk 0:02:58]}  Nf6 {[%clk 0:03:04]} 8. Re1 {[%clk 0:02:58]}  Nc6 {[%clk 0:03:03]} 9. Ne4 {[%clk 0:02:59]}  Nxe4 {[%clk 0:03:03]} 10. Rxe4 {[%clk 0:02:59]}  Be7 {[%clk 0:02:59]} 11. Nxd4 {[%clk 0:03:00]}  e5 {[%clk 0:02:59]} 12. Bf4 {[%clk 0:03:00]}  exf4 {[%clk 0:02:46]} 13. Nxc6 {[%clk 0:03:00]}  Qxd1+ {[%clk 0:02:47]} 14. Rxd1 {[%clk 0:03:01]}  bxc6 {[%clk 0:02:47]} 15. Rde1 {[%clk 0:03:02]}  Kf8 {[%clk 0:02:48]} 16. Rxe7 {[%clk 0:03:02]}  Be6 {[%clk 0:02:49]} 17. R1xe6 {[%clk 0:03:03]}  fxe6 {[%clk 0:02:49]} 18. Rc7 {[%clk 0:03:04]}  h5 {[%clk 0:02:45]} 19. h4 {[%clk 0:03:03]}  Rh6 {[%clk 0:02:46]} 20. f3 {[%clk 0:02:49]}  Rf6 {[%clk 0:02:45]} 21. Rxc6 {[%clk 0:02:48]}  e5 {[%clk 0:02:46]} 22. Rc7 {[%clk 0:02:47]}  a5 {[%clk 0:02:35]} 23. a4 {[%clk 0:02:38]}  Rd8 {[%clk 0:02:16]} 24. Bd3 {[%clk 0:02:32]}  Rfd6 {[%clk 0:02:11]} 25. Rc5 {[%clk 0:02:32]}  Rd5 {[%clk 0:02:11]} 26. Rc7 {[%clk 0:02:18]}  R8d7 {[%clk 0:02:09]} 27. Rc6 {[%clk 0:02:17]}  Ke7 {[%clk 0:02:08]} 28. Kh2 {[%clk 0:02:14]}  R7d6 {[%clk 0:02:04]} 29. Rc7+ {[%clk 0:02:14]}  Kf6 {[%clk 0:02:05]} 30. b3 {[%clk 0:02:00]}  Rxd3 {[%clk 0:01:53]} 31. cxd3 {[%clk 0:01:59]}  Rxd3 {[%clk 0:01:54]} 32. Rc5 {[%clk 0:01:54]}  Rxb3 {[%clk 0:01:54]} 33. Rxa5 {[%clk 0:01:55]}  Ra3 {[%clk 0:01:53]} 34. Ra8 {[%clk 0:01:51]}  Ra2 {[%clk 0:01:54]} 35. Kh3 {[%clk 0:01:48]}  e4 {[%clk 0:01:19]} 36. fxe4 {[%clk 0:01:44]}  Ke5 {[%clk 0:01:19]} 37. Rg8 {[%clk 0:01:40]}  Ra3+ {[%clk 0:00:57]} 38. Kh2 {[%clk 0:01:39]}  Rxa4 {[%clk 0:00:42]} 39. Rxg7 {[%clk 0:01:38]}  Kxe4 {[%clk 0:00:42]} 40. Rg5 {[%clk 0:01:37]}  Ra2 {[%clk 0:00:43]} 41. Kg1 {[%clk 0:01:34]}  f3 {[%clk 0:00:30]} 42. gxf3+ {[%clk 0:01:33]}  Kxf3 {[%clk 0:00:31]} 43. Rxh5 {[%clk 0:01:33]}  Ra1+ {[%clk 0:00:28]} 44. Kh2 {[%clk 0:01:33]}  Kg4 {[%clk 0:00:28]} 45. Rg5+ {[%clk 0:01:33]}  Kxh4 {[%clk 0:00:29]} 46. Rg2 {[%clk 0:01:34]}  Ra3 {[%clk 0:00:29]} 47. Rb2 {[%clk 0:01:34]}  Rh3+ {[%clk 0:00:29]} 48. Kg2 {[%clk 0:01:34]}  Rc3 {[%clk 0:00:30]} 49. Kf2 {[%clk 0:01:34]}  Rh3 {[%clk 0:00:29]} 50. Kg2 {[%clk 0:01:35]}  Rd3 {[%clk 0:00:28]} 51. Kf2 {[%clk 0:01:34]}  Kh3 {[%clk 0:00:29]} 52. Rb8 {[%clk 0:01:33]}  Ra3 {[%clk 0:00:28]} 53. Rg8 {[%clk 0:01:33]}  Ra2+ {[%clk 0:00:27]} 54. Kf3 {[%clk 0:01:34]}  Ra3+ {[%clk 0:00:28]} 55. Kf4 {[%clk 0:01:34]}  Ra7 {[%clk 0:00:28]} 56. Rh8+ {[%clk 0:01:33]}  Kg2 {[%clk 0:00:28]} 57. Rg8+ {[%clk 0:01:34]}  Kf2 {[%clk 0:00:29]} 58. Rf8 {[%clk 0:01:33]}  Ra4+ {[%clk 0:00:28]} 59. Ke5+ {[%clk 0:01:33]}  Ke3 {[%clk 0:00:29]} 60. Rd8 {[%clk 0:01:33]}  Ra5+ {[%clk 0:00:29]} 61. Rd5 {[%clk 0:01:34]}  Ra8 {[%clk 0:00:30]} 62. Rb5 {[%clk 0:01:34]}  Rh8 {[%clk 0:00:30]} 63. Rb3+ {[%clk 0:01:34]}  Kd2 {[%clk 0:00:30]} 64. Kf6 {[%clk 0:01:34]}  Rh6+ {[%clk 0:00:30]} 65. Kg7 {[%clk 0:01:35]}  Rh1 {[%clk 0:00:31]} 66. Rg3 {[%clk 0:01:35]}  Ke2 {[%clk 0:00:31]} 67. Ra3 {[%clk 0:01:35]}  Kf2 {[%clk 0:00:32]} 68. Rb3 {[%clk 0:01:36]}  Rc1 {[%clk 0:00:32]} 69. Ra3 {[%clk 0:01:36]}  Rc7+ {[%clk 0:00:33]} 70. Kh8 {[%clk 0:01:36]}  Rb7 {[%clk 0:00:34]} 71. Kg8 {[%clk 0:01:35]}  Ke2 {[%clk 0:00:34]} 72. Kh8 {[%clk 0:01:35]}  Kd2 {[%clk 0:00:34]} 73. Kg8 {[%clk 0:01:36]}  Kc2 {[%clk 0:00:35]} 74. Kh8 {[%clk 0:01:36]}  Kb2 {[%clk 0:00:36]} 75. Rh3 {[%clk 0:01:36]}  Rb8+ {[%clk 0:00:36]} 76. Kh7 {[%clk 0:01:36]}  Rb7+ {[%clk 0:00:37]} 77. Kh8 {[%clk 0:01:37]}  Ra7 {[%clk 0:00:38]} 78. Kg8 {[%clk 0:01:37]}  Kc2 {[%clk 0:00:39]} 79. Kh8 {[%clk 0:01:38]}  Kd2 {[%clk 0:00:39]} 80. Kg8 {[%clk 0:01:38]}  Ke2 {[%clk 0:00:40]} 81. Kh8 {[%clk 0:01:39]}  Kf2 {[%clk 0:00:41]} 82. Kg8 {[%clk 0:01:39]}  Kg2 {[%clk 0:00:41]} 83. Rb3 {[%clk 0:01:39]}  Rc7 {[%clk 0:00:42]} 84. Kh8 {[%clk 0:01:40]}  Rf7 {[%clk 0:00:42]} 85. Kg8 {[%clk 0:01:40]}  Rf6 {[%clk 0:00:42]} 86. Kg7 {[%clk 0:01:40]}  Rc6 {[%clk 0:00:42]} 87. Kh8 {[%clk 0:01:40]}  Kf2 {[%clk 0:00:43]} 88. Kg7 {[%clk 0:01:41]}  Rc7+ {[%clk 0:00:43]} 89. Kh8 {[%clk 0:01:41]}  Rc6 {[%clk 0:00:44]} 90. Kg8 {[%clk 0:01:41]}  Rc8+ {[%clk 0:00:45]} 91. Kg7 {[%clk 0:01:41]}  Rc7+ {[%clk 0:00:46]} 92. Kh8 {[%clk 0:01:42]}  Ke2 {[%clk 0:00:46]} 93. Kg8 {[%clk 0:01:42]}  Rc8+ {[%clk 0:00:47]} 94. Kg7 {[%clk 0:01:42]}  Rc7+ {[%clk 0:00:48]} 95. Kh8 {[%clk 0:01:43]}  Kd2 {[%clk 0:00:48]} 1/2-1/2


[Site "https://www.chess.com"]